{"text_format":"1","workbook":"xlsx","n_sheets":4,"sheets":["Навигация","Стандартный","Для ИП и Самоз.","Методика"],"not_rendered":{"charts":0,"images":3,"macros":1,"external_links":0,"defined_names":0,"comments":0,"pivot_tables":0},"unopened":[],"bounds":{"document_bytes":16777216,"sheet_cells":100000,"rows_first":2000,"rows_last":500,"rows_between":2000,"halvings":0,"cell_chars":16384,"cell_head_chars":4096},"cells_cut":0,"cells_raw":0,"read":"whole","date_system":"1900"}

{"sheet":"Навигация","index":0,"n_rows":7,"n_cols":7,"rows_kept":7,"cut":false,"hidden":false,"merged":[[5,6,5,19],[6,6,6,19],[4,0,4,5],[5,0,6,5],[0,0,0,19],[4,6,4,19]]}
["Расчет среднемесячного дохода заемщика"]
[]
[]
[]
["Шаг 0. Выберите тип калькулятора:",null,null,null,null,null,"Стандартный (Для физических лиц, не являющихся индивидуальными предпринимателями или самозанятыми)"]
["(Необходимо нажать на требуемый вид калькулятора справа)",null,null,null,null,null,"или"]
[null,null,null,null,null,null,"Для ИП или Самозанятых (Для физических лиц, являющихся индивидуальными предпринимателями или самозанятыми)"]

{"sheet":"Стандартный","index":1,"n_rows":88,"n_cols":27,"rows_kept":88,"cut":false,"hidden":false,"merged":[[86,2,86,19],[87,21,87,25],[80,2,80,3],[80,4,80,8],[80,9,80,13],[80,14,80,18],[82,2,82,19],[84,2,84,19],[78,2,78,3],[78,4,78,8],[78,9,78,13],[78,14,78,18],[79,2,79,3],[79,4,79,8],[79,9,79,13],[79,14,79,18],[73,2,77,3],[73,4,73,8],[73,9,73,13],[73,14,77,18],[74,4,77,8],[74,9,77,13],[68,2,68,3],[68,4,68,5],[68,6,68,9],[68,10,68,11],[68,12,68,15],[69,2,69,3],[69,4,69,5],[69,6,69,9],[69,10,69,11],[69,12,69,15],[66,2,66,3],[66,4,66,5],[66,6,66,9],[66,10,66,11],[66,12,66,15],[67,2,67,3],[67,4,67,5],[67,6,67,9],[67,10,67,11],[67,12,67,15],[55,0,56,19],[58,0,58,19],[60,0,60,19],[62,1,62,5],[64,2,65,3],[64,4,65,5],[64,6,65,9],[64,10,65,11],[64,12,65,15],[48,21,48,25],[49,1,49,7],[49,9,49,13],[50,21,50,25],[51,1,53,7],[51,9,53,13],[51,21,51,25],[53,21,53,25],[43,21,43,25],[44,21,44,25],[45,1,45,7],[45,9,45,13],[45,21,45,25],[47,1,47,7],[47,9,47,13],[47,21,47,25],[40,1,40,2],[40,3,40,7],[40,8,40,12],[40,13,40,17],[42,0,42,19],[43,0,43,19],[30,0,30,19],[31,0,31,19],[32,0,32,19],[33,0,33,19],[35,1,39,2],[35,3,35,7],[35,8,35,12],[35,13,39,17],[36,3,39,7],[36,8,39,12],[27,1,27,2],[27,3,27,7],[27,8,27,12],[27,13,27,17],[28,1,28,2],[28,3,28,7],[28,8,28,12],[28,13,28,17],[25,1,25,2],[25,3,25,7],[25,8,25,12],[25,13,25,17],[26,1,26,2],[26,3,26,7],[26,8,26,12],[26,13,26,17],[23,1,23,2],[23,3,23,7],[23,8,23,12],[23,13,23,17],[24,1,24,2],[24,3,24,7],[24,8,24,12],[24,13,24,17],[21,1,21,2],[21,3,21,7],[21,8,21,12],[21,13,21,17],[22,1,22,2],[22,3,22,7],[22,8,22,12],[22,13,22,17],[19,1,19,2],[19,3,19,7],[19,8,19,12],[19,13,19,17],[20,1,20,2],[20,3,20,7],[20,8,20,12],[20,13,20,17],[17,1,17,2],[17,3,17,7],[17,8,17,12],[17,13,17,17],[18,1,18,2],[18,3,18,7],[18,8,18,12],[18,13,18,17],[12,1,16,2],[12,3,12,7],[12,8,12,12],[12,13,16,17],[13,3,16,7],[13,8,16,12],[0,0,3,19],[5,0,5,19],[6,0,6,19],[7,0,8,19],[9,0,10,19],[11,0,11,19]]}
["Расчет среднемесячного дохода заемщика, не являющегося самозанятым или индивидуальным предпринимателем.\n(Расчет является предварительным и служит информационным целям для оценки потенциального изменения дохода.\nФинальное решение будет приниматься на основании документов после проведения Банком  расчетов)"]
[]
[]
[]
[]
["Шаг 1. Введите свой доход за 2019 г. (до налогов, мы сами их вычтем):"]
["Если у Вас в какой-либо месяц не было дохода, то необходимо заполнить данные по доходу за данный месяц числом 0."]
["Если у Вас 3 и более источников дохода, то необходимо заполнить данные по дополнительному доходу суммой всех дополнительных доходов за данный месяц."]
[]
["Данные о первомом источние дохода заемщика за 2019 г. заполняются на основании справки 2НДФЛ и включают в себя суммы дохода по кодам 1240, 2000, 2001, 2002, 2003, 2010, 2012, 2013, 2014, 2300, 2520, 2530, 2710, 2760, 2762. "]
[]
[]
[null,"Месяц",null,"Сумма дохода (1)",null,null,null,null,"Сумма дохода (2)",null,null,null,null,"Итого доход по месяцам"]
[null,null,null,"Первый источник дохода \nпо справке 2НДФЛ.\nУказывайте свой доход до налогов",null,null,null,null,"Второй источник дохода. Например, пенсия или инные социальные выплаты"]
[]
[]
[]
[null,1,null,45000,null,null,null,null,10000,null,null,null,null,{"$f":"D18*87%+I18","v":49150}]
[null,2,null,45000,null,null,null,null,10000,null,null,null,null,{"$f":"D19*87%+I19","v":49150}]
[null,3,null,45000,null,null,null,null,10000,null,null,null,null,49150]
[null,4,null,45000,null,null,null,null,10000,null,null,null,null,49150]
[null,5,null,45000,null,null,null,null,10000,null,null,null,null,49150]
[null,6,null,45000,null,null,null,null,10000,null,null,null,null,49150]
[null,7,null,45000,null,null,null,null,10000,null,null,null,null,49150]
[null,8,null,45000,null,null,null,null,10000,null,null,null,null,49150]
[null,9,null,45000,null,null,null,null,10000,null,null,null,null,49150]
[null,10,null,45000,null,null,null,null,10000,null,null,null,null,49150]
[null,11,null,45000,null,null,null,null,10000,null,null,null,null,49150]
[null,12,null,45000,null,null,null,null,10000,null,null,null,null,49150]
[]
[]
["Шаг 2. Введите свой доход за месяц, предшедствующий месяцу обращения  (до налогов, мы сами их вычтем):"]
["Например, если Вы обращаетесь 31 апреля, то необходимо указать свой доход за Март."]
["Если у вас больничный лист со сроком месяц и более, то укажите ожидаемый доход за месяц."]
[]
[null,"Месяц",null,"Сумма дохода (1)",null,null,null,null,"Сумма дохода (2)",null,null,null,null,"Итого доход"]
[null,null,null,"Первый источник дохода \nпо справке 2НДФЛ.\nУказывайте свой доход до налогов",null,null,null,null,"Второй источник дохода. Например, пенсия или инные социальные выплаты"]
[]
[]
[]
[null,null,null,25000,null,null,null,null,10000,null,null,null,null,{"$f":"D41*87%+I41","v":31750}]
[]
[]
["Шаг 3. Результаты расчета калькулятора для указания в документе \"Требование\":",null,null,null,null,null,null,null,null,null,null,null,null,null,null,null,null,null,null,null,null,"Данные для расчета"]
[null,null,null,null,null,null,null,null,null,null,null,null,null,null,null,null,null,null,null,null,null,"Количество месяцев в доходом >0",null,null,null,null,{"$f":"COUNTIF(N18:R29,\">0\")","v":12}]
[null,"Среднямесячный доход за 2019г. после налогов:",null,null,null,null,null,null,null,{"$f":"IFERROR(IF(AA45>=5,AA88,(AA46/AA45)),\"\")","v":49150},null,null,null,null,null,null,null,null,null,null,null,"Сумма всех доходов",null,null,null,null,{"$f":"SUM(N18:R29)","v":589800}]
[]
[null,"Доход за месяц, предшествующий месяцу обращения:",null,null,null,null,null,null,null,{"$f":"N41","v":31750},null,null,null,null,null,null,null,null,null,null,null,"1ое наибольшее",null,null,null,null,{"$f":"LARGE(N18:R29,1)","v":49150}]
[null,null,null,null,null,null,null,null,null,null,null,null,null,null,null,null,null,null,null,null,null,"2ое наибольшее",null,null,null,null,{"$f":"LARGE(N18:R29,2)","v":49150}]
[null,"Разница, %:",null,null,null,null,null,null,null,{"$f":"IFERROR(1-J48/J46,\"\")","v":0.35401831129196337}]
[null,null,null,null,null,null,null,null,null,null,null,null,null,null,null,null,null,null,null,null,null,"1ое наименьшее",null,null,null,null,{"$f":"SMALL(IF(N18:R29>0,N18:R29,\"\"),1)","v":49150}]
[null,"Результат:",null,null,null,null,null,null,null,{"$f":"IF(J50=\"\",\"\",IF(J50>=30%,\"Подтверждено снижение дохода на 30% и более.\",\"Не подтверждено снижение дохода на 30% и более.\"))","v":"Подтверждено снижение дохода на 30% и более."},null,null,null,null,null,null,null,null,null,null,null,"2ое наименьшее",null,null,null,null,{"$f":"SMALL(IF(N18:R29>0,N18:R29,\"\"),2)","v":49150}]
[]
[null,null,null,null,null,null,null,null,null,null,null,null,null,null,null,null,null,null,null,null,null,"Сумма доходов без наибольших и наименьших",null,null,null,null,{"$f":"AA46-AA48-AA49-AA51-AA52","v":393200}]
[]
[]
[]
["Справочная информация:"]
["1. Расчет среднемесячного дохода заемщика осуществляется согласно методике Правительства РФ."]
[]
["2. Как заполнять данные в калькуляторе на основании справки 2НДФЛ:"]
[]
[null,"Как видите Вы в справке 2НДФЛ:"]
[]
[null,null,"Месяц",null,"Код дохода",null,"Сумма дохода",null,null,null,"Код вычета",null,"Сумма вычета"]
[]
[null,null,1,null,2000,null,40000]
[null,null,2,null,2000,null,30000]
[null,null,2,null,2300,null,5000]
[null,null,3,null,2000,null,40000]
[]
[null,"Как эти данные нужно внести в калькулятор (Шаг 1):"]
[]
[null,null,"Месяц",null,"Сумма дохода (1)",null,null,null,null,"Сумма дохода (2)",null,null,null,null,"Итого"]
[null,null,null,null,"(Первый источника дохода по справке 2НДФЛ.\nУказывайте свой доход до налогов)",null,null,null,null,"(Второй источник дохода. Например, пенсия или инные социальные выплаты)"]
[]
[]
[]
[null,null,1,null,40000,null,null,null,null,0,null,null,null,null,{"$f":"E79*87%+J79","v":34800}]
[null,null,2,null,35000,null,null,null,null,0,null,null,null,null,{"$f":"E80*87%+J80","v":30450}]
[null,null,3,null,40000,null,null,null,null,0,null,null,null,null,34800]
[]
[null,null,"За месяц 1 есть только одна запись о доходе. В поле \"Сумма дохода (1)\" для месяца 1 необходимо внести сумму дохода из этой записи."]
[]
[null,null,"За месяц 2 есть две записи о доходе, т.к был больничный в этом месяце. В поле \"Сумма дохода(1) для месяца 2 необходимо внести сумму дохода из этих двух записей."]
[]
[null,null,"За месяц 3 опять есть только одна запись о доходе. В поле \"Сумма дохода(1)\" для месяца 3 необходимо внести сумму дохода из этой записи."]
[null,null,null,null,null,null,null,null,null,null,null,null,null,null,null,null,null,null,null,null,null,"Средний доход",null,null,null,null,{"$f":"AA54/(AA45-4)","v":49150}]

{"sheet":"Для ИП и Самоз.","index":2,"n_rows":170,"n_cols":27,"rows_kept":170,"cut":false,"hidden":false,"merged":[[134,0,134,19],[137,1,137,3],[137,4,137,6],[140,1,140,3],[140,4,140,6],[142,0,142,19],[147,1,147,3],[147,4,147,6],[150,1,150,3],[150,4,150,6],[145,1,145,3],[145,4,145,6],[166,0,167,19],[169,0,169,19],[8,1,8,3],[158,1,158,7],[158,9,158,13],[160,1,160,7],[160,9,160,13],[162,1,164,7],[162,9,164,13],[127,0,127,19],[128,0,128,19],[130,3,130,4],[131,3,131,4],[154,0,154,19],[156,1,156,7],[156,9,156,13],[119,3,119,4],[120,3,120,4],[121,3,121,4],[122,3,122,4],[123,3,123,4],[126,0,126,19],[113,3,113,4],[114,3,114,4],[115,3,115,4],[116,3,116,4],[117,3,117,4],[118,3,118,4],[105,1,105,2],[105,3,105,4],[108,0,108,19],[109,0,109,19],[111,3,111,4],[112,3,112,4],[102,1,102,2],[102,3,102,4],[103,1,103,2],[103,3,103,4],[104,1,104,2],[104,3,104,4],[95,0,95,19],[96,0,96,19],[98,1,98,4],[100,1,100,2],[100,3,100,4],[101,1,101,2],[101,3,101,4],[87,3,87,4],[88,3,88,4],[89,3,89,4],[90,3,90,4],[91,3,91,4],[92,3,92,4],[81,3,81,4],[82,3,82,4],[83,3,83,4],[84,3,84,4],[85,3,85,4],[86,3,86,4],[73,3,73,4],[74,3,74,4],[75,3,75,4],[76,3,76,4],[79,2,79,3],[80,3,80,4],[67,3,67,4],[68,3,68,4],[69,3,69,4],[70,3,70,4],[71,3,71,4],[72,3,72,4],[59,3,59,4],[60,3,60,4],[63,2,63,3],[64,3,64,4],[65,3,65,4],[66,3,66,4],[53,3,53,4],[54,3,54,4],[55,3,55,4],[56,3,56,4],[57,3,57,4],[58,3,58,4],[47,2,47,3],[48,3,48,4],[49,3,49,4],[50,3,50,4],[51,3,51,4],[52,3,52,4],[39,3,39,4],[40,3,40,4],[41,3,41,4],[42,3,42,4],[43,3,43,4],[44,3,44,4],[33,3,33,4],[34,3,34,4],[35,3,35,4],[36,3,36,4],[37,3,37,4],[38,3,38,4],[25,3,25,4],[26,3,26,4],[27,3,27,4],[28,3,28,4],[31,2,31,3],[32,3,32,4],[22,3,22,4],[23,3,23,4],[24,3,24,4],[10,0,10,19],[12,1,12,4],[15,2,15,3],[16,3,16,4],[17,3,17,4],[18,3,18,4],[0,0,3,19],[4,0,4,19],[5,0,5,19],[7,1,7,3],[7,4,7,11],[9,0,9,19],[19,3,19,4],[20,3,20,4],[21,3,21,4]]}
["Расчет среднемесячного дохода заемщика, являющегося самозанятым или индивидуальным предпринимателем.\n(Расчет является предварительным и служит информационным целям для оценки потенциального изменения дохода.\nФинальное решение будет приниматься на основании документов после проведения Банком  расчетов)"]
[]
[]
[]
["Шаг 1. Выберите способ подтверждения дохода"]
["Необходимо выбрать способ подтверждения из доступного списка.",null,null,null,null,null,null,null,null,null,null,null,null,null,null,null,null,null,null,null,null,{"$f":"IF(E8=X6,1,IF(E8=X7,2,IF(E8=X8,3,0)))","v":1},null,"Справка об оборотах по расчетным счетам"]
[null,null,null,null,null,null,null,null,null,null,null,null,null,null,null,null,null,null,null,null,null,null,null,"Справка о доходах из мобильного приложения \"Мой налог\""]
[null,"Способ подтверждения дохода:",null,null,"Справка об оборотах по расчетным счетам",null,null,null,null,null,null,null,null,null,null,null,null,null,null,null,null,null,null,"Справка 3-НДФЛ"]
[]
["Шаг 2. Введите обороты по расчетным счетам за 2019 г.:"]
["Данные необходимо заполнить на основании справки об оборотах по расчетному счету."]
[]
[null,"Введите количество расчетных счетов (макс. 5):",null,null,null,2]
[]
[null,null,null,null,null,null,null,null,null,null,null,null,null,null,null,null,null,null,null,null,null,null,null,1]
[null,null,"Расчетный счет №1:",null,null,null,null,null,null,null,null,null,null,null,null,null,null,null,null,null,null,null,null,2]
[null,null,"Месяц","Оборот по кредиту",null,null,null,null,null,null,null,null,null,null,null,null,null,null,null,null,null,null,null,3]
[null,null,1,9240922,null,null,null,null,null,null,null,null,null,null,null,null,null,null,null,null,null,null,null,4]
[null,null,2,10347720,null,null,null,null,null,null,null,null,null,null,null,null,null,null,null,null,null,null,null,5]
[null,null,3,4572278.57]
[null,null,4,3974200]
[null,null,5,2139330]
[null,null,6,2793287]
[null,null,7,5203190]
[null,null,8,5760773.1500000004]
[null,null,9,9981250]
[null,null,10,3755680]
[null,null,11,5441902]
[null,null,12,2096599]
[]
[]
[null,null,"Расчетный счет №2:"]
[null,null,"Месяц","Оборот по кредиту"]
[null,null,1,1996646.68]
[null,null,2,2669861.16]
[null,null,3,3077617.51]
[null,null,4,2490111.7000000002]
[null,null,5,2554388.62]
[null,null,6,4025037.68]
[null,null,7,3113663.89]
[null,null,8,3369777.95]
[null,null,9,379289.99]
[null,null,10,4216754.1399999997]
[null,null,11,3592450.37]
[null,null,12,3910534.62]
[]
[]
[null,null,"Расчетный счет №3:"]
[null,null,"Месяц","Оборот по кредиту"]
[null,null,1]
[null,null,2]
[null,null,3]
[null,null,4]
[null,null,5]
[null,null,6]
[null,null,7]
[null,null,8]
[null,null,9]
[null,null,10]
[null,null,11]
[null,null,12]
[]
[]
[null,null,"Расчетный счет №4:"]
[null,null,"Месяц","Оборот по кредиту"]
[null,null,1]
[null,null,2]
[null,null,3]
[null,null,4]
[null,null,5]
[null,null,6]
[null,null,7]
[null,null,8]
[null,null,9]
[null,null,10]
[null,null,11]
[null,null,12]
[]
[]
[null,null,"Расчетный счет №5:"]
[null,null,"Месяц","Оборот по кредиту"]
[null,null,1]
[null,null,2]
[null,null,3]
[null,null,4]
[null,null,5]
[null,null,6]
[null,null,7]
[null,null,8]
[null,null,9]
[null,null,10]
[null,null,11]
[null,null,12]
[]
[]
["Шаг 3. Введите обороты по расчетным счетам за месяц предшедствующий месяцу обращения.:"]
["Например, если вы обращаетесь 30 апреля, то необходимо указать данные за Март."]
[]
[null,"Введите количество расчетных счетов (макс. 5):",null,null,null,2]
[]
[null,"№ Расчетного счета",null,"Оборот по кредиту"]
[null,1,null,3912424]
[null,2,null,1923456]
[null,3]
[null,4]
[null,5]
[]
[]
["Шаг 2. Введите данные по доходам за 2019 г.:"]
["Данные необходимо заполнить на основании справки о доходах из приложения \"Мой налог\""]
[]
[null,null,"Месяц","Сумма дохода"]
[null,null,1,100000]
[null,null,2,100000]
[null,null,3,100000]
[null,null,4,100000]
[null,null,5,100000]
[null,null,6,100000]
[null,null,7,100000]
[null,null,8,100000]
[null,null,9,100000]
[null,null,10,100000]
[null,null,11,100000]
[null,null,12,100000]
[]
[]
["Шаг 3. Введите данные по доходам за месяц предшедствующий месяцу обращения.:"]
["Например, если вы обращаетесь 30 апреля, то необходимо указать данные за Март."]
["Если у вас больничный лист со сроком месяц и более. То укажите ожидаемый доход за месяц"]
[]
[null,null,"Месяц","Сумма дохода"]
[null,null,null,65000]
[]
[]
["Шаг 2. Введите данные по доходам за 2019 г.:"]
["Данные необходимо заполнить на основании справки 3-НДФЛ за 2019 г. (Раздел 2.1.1):"]
[]
[null,"Сумма полученных доходов за 2019 г.:",null,null,5333060]
[]
[]
[null,"Сумма исчисленного налога за 2019 г.:",null,null,319984]
[]
["Шаг 3. Введите данные по доходам за 2020 г.:"]
["Данные необходимо заполнить на основании справки 3-НДФЛ за первый квартал 2020 г. или первое полугодие 2020 г. (Раздел 2.1.1):"]
[]
[null,"Налоговый период:",null,null,"Первый квартал",null,null,null,null,null,null,null,null,null,null,null,null,null,null,null,{"$f":"IF(E146=V146,1,IF(E146=V147,2,0))","v":1},"Первый квартал"]
[null,null,null,null,null,null,null,null,null,null,null,null,null,null,null,null,null,null,null,null,null,"Полугодие"]
[null,"Сумма полученных доходов за период:",null,null,900000]
[]
[]
[null,"Сумма исчисленного налога за период:",null,null,100000]
[]
[]
[]
["Шаг 4. Результаты расчета калькулятора для указания в документе \"Требование\":"]
[null,null,null,null,null,null,null,null,null,null,null,null,null,null,null,null,null,null,null,null,null,"Вариант 1",null,"Вариант 2",null,"Вариант 3"]
[null,{"$f":"IF(V6=1,\"Средний оборот по кредиту за 2019 г.:\",IF(V6=2,\"Средний доход за 2019 г.:\",\"Средний доход за 2019 г.:\"))","v":"Средний оборот по кредиту за 2019 г.:"},null,null,null,null,null,null,null,{"$f":"IF(V6=1,W157/12,IF(V6=2,Y157/12,IF(V6=3,AA157/12,0)))","v":8391938.8358333353},null,null,null,null,null,null,null,null,null,null,null,"Сумма оборотов по всем счетам",{"$f":"SUM(D18:E29,D34:E45,D50:E61,D66:E77,D82:E93)","v":100703266.03000003},"Сумма доходов за 12 мес.",{"$f":"SUM(D113:E124)","v":1200000},"Сумма доходов с учетом налогов за 2019 г.:",{"$f":"E138-E141","v":5013076}]
[null,null,null,null,null,null,null,null,null,null,null,null,null,null,null,null,null,null,null,null,null,"Сумма оборотов по пред месяцу",{"$f":"SUM(D102:E106)","v":5835880},"Доход за последний месяц",{"$f":"D132","v":65000},"Сумма дохода за посл. Налоговый период:",{"$f":"E148-E151","v":800000}]
[null,{"$f":"IF(V6=1,\"Оборот за месяц, предшествующий месяцу обращения:\",IF(V6=2,\"Доход за месяц, предшествующий месяцу обращения:\",\"Средний доход за 2020 г.:\"))","v":"Оборот за месяц, предшествующий месяцу обращения:"},null,null,null,null,null,null,null,{"$f":"IF(V6=1,W158,IF(V6=2,Y158,IF(V6=3,AA160,0)))","v":5835880}]
[null,null,null,null,null,null,null,null,null,null,null,null,null,null,null,null,null,null,null,null,null,null,null,null,null,"Средний доход в 2020 в месяц",{"$f":"IF(U146=1,AA158/3,AA158/6)","v":266666.66666666669}]
[null,"Разница, %:",null,null,null,null,null,null,null,{"$f":"IFERROR((1-J159/J157),\"\")","v":0.3045850173405743}]
[]
[null,"Результат:",null,null,null,null,null,null,null,{"$f":"IF(J161=\"\",\"\",IF(J161>=30%,\"Подтверждено снижение дохода на 30% и более.\",\"Не подтверждено снижение дохода на 30% и более.\"))","v":"Подтверждено снижение дохода на 30% и более."}]
[]
[]
[]
[]
[]
["Справочная информация:"]
["1. Расчет среднемесячного дохода заемщика осуществляется согласно методике Правительства РФ."]

{"sheet":"Методика","index":3,"n_rows":0,"n_cols":0,"rows_kept":0,"cut":false,"hidden":false,"merged":[]}